Cogmind - Beta 14 @@@ ROGUE MODE // 2024.10.14 @ 20:09:49 Player: Kate+Gabe4evr Result: Destroyed by Y-64 Sentinel with KE Penetrator Performance ------------- Evolutions (5) 2500 Regions Visited (10) 2000 Robots Destroyed (118) 590 Value Destroyed (4809) 4809 Prototype IDs (8) 160 Alien Tech Used (0) 0 Bonus (3249) 3249 TOTAL SCORE: 13308 Bonus ------- High Alert Combat Kills 619 Follower Combat Kills 1767 Built Enhanced Grunts 300 A7 Reached Mainframe 300 Met R17 at Cetus 500 Friendly Fire -237 Cogmind --------- Core Integrity 0/1000 Matter 98/300 Energy 50/100 System Corruption 20% Temperature Cool (13) Movement Hovering (240) Ox2 Location -5/Factory Parts ------- > --- POWER (2) -------- Backup Power I Backup Power I > --- PROPULSION (4) --- Backup Propulsion I > --- UTILITY (9) ------ Enhanced Optical Array Advanced Melee Analysis Suite Experimental Utility Shielding Experimental Thermal Shield > --- WEAPON (2) ------- Backup Laser I Proton Cannon > --- INVENTORY (5) ---- Armored Medium Treads Flexi-carbon Leg Large Storage Unit Improved Weapon Cycler Plasma Cutter Peak State ------------ > --- POWER ------------ Quantum Reactor Quantum Reactor > --- PROPULSION ------- Centrium Heavy Treads Centrium Heavy Treads > --- UTILITY ---------- Advanced Heat Sink Advanced Heat Sink Large Storage Unit Advanced Signal Interpreter Advanced Melee Analysis Suite Improved Transmission Jammer Centrium Medium Armor Plating Centrium Medium Armor Plating Improved System Shield > --- WEAPON ----------- Advanced Variable Charge Gun Advanced Variable Charge Gun > --- INVENTORY -------- Light Angular Momentum Engine Carbon-fiber Leg Carbon-fiber Leg Carbon-fiber Leg Carbon-fiber Leg Improved Light Armor Plating Field Laser Plasma Rifle Wave Gun Advanced Variable Charge Gun Heavy Plasma Cannon Long-range Missile Launcher Plasma Cutter Mace Phasing Sabre [Rating: 126] Favorites ----------- Power Quantum Reactor Engine Improved Ion Engine Power Core Neutrino Core Reactor Quantum Reactor Propulsion Carbon-fiber Leg Treads Centrium Heavy Treads Leg Carbon-fiber Leg Hover Unit Backup Propulsion I Utility Advanced Heat Sink Device Advanced Heat Sink Storage Large Storage Unit Processor Improved Targeting Computer Hackware Hacking Suite Protection Centrium Medium Armor Plating Weapon Heavy Particle Cannon Energy Gun Advanced Variable Charge Gun Energy Cannon Heavy Particle Cannon Ballistic Gun Autogun Ballistic Cannon Improved Light Cannon Launcher Long-range Missile Launcher Special Weapon Plasma Cutter Impact Weapon Mace Slashing Weapon Phasing Sabre Build | -11 -10 -9 -8 -7 -6 -6 -6 -5 -5 -5 ------- Run | Yrd Mat Mat Mat Fac Fac Ext Cet Fac Was Fac Slots Evolved 10 | . . 2 2 2 2 . . 2 . . Power 1 | . . . . . . . . 1 . . Propulsion 2 | . . . 2 . . . . . . . Utility 7 | . . 2 . 2 2 . . 1 . . Weapon . | . . . . . . . . . . . Parts Attached 202 | 6 4 12 31 15 24 61 14 32 2 1 Power 29 | 1 1 . 5 1 4 13 1 3 . . Engine 20 | 1 1 . 4 1 3 10 . . . . Core 6 | . . . 1 . 1 3 . 1 . . Reactor 3 | . . . . . . . 1 2 . . Propulsion 53 | 2 1 1 9 6 6 21 2 5 . . Treads 7 | . . . . 3 . . 2 2 . . Leg 46 | 2 1 1 9 3 6 21 . 3 . . Wheel . | . . . . . . . . . . . Hover . | . . . . . . . . . . . Flight . | . . . . . . . . . . . Utility 51 | 1 1 2 7 4 9 10 6 10 1 . Device 25 | . 1 2 3 2 5 4 4 4 . . Storage 7 | 1 . . 2 . 1 2 . 1 . . Processor 4 | . . . . 1 . 1 . 2 . . Hackware 4 | . . . . 1 3 . . . . . Protection 11 | . . . 2 . . 3 2 3 1 . Artifact . | . . . . . . . . . . . Weapon 69 | 2 1 9 10 4 5 17 5 14 1 1 Energy Gun 31 | 1 . 3 2 . 3 12 4 5 1 . Energy Cannon 19 | . . 2 5 3 2 3 . 3 . 1 Ballistic Gun 4 | 1 . 1 2 . . . . . . . Ballistic Cannon 2 | . 1 . 1 . . . . . . . Launcher 6 | . . 3 . . . . . 3 . . Special Weapon 1 | . . . . . . . 1 . . . Impact Weapon 2 | . . . . 1 . . . 1 . . Slashing Weapon 4 | . . . . . . 2 . 2 . . Piercing Weapon . | . . . . . . . . . . . Special Melee Weapon . | . . . . . . . . . . . Unidentified Prototypes 8 | . . 1 1 . . . 3 3 . . Corrupted Parts 9 | . . . 1 1 . 3 3 1 . . System Corruption 51 | . . . 1 15 . 30 3 2 . . Parts Lost 84 | . . 1 19 3 6 31 2 20 1 1 Power 10 | . . . 2 . 1 4 . 3 . . Propulsion 27 | . . . 6 3 2 10 . 5 . 1 Utility 23 | . . . 6 . 2 7 2 5 1 . Weapon 24 | . . 1 5 . 1 10 . 7 . . Highest Loss Streak 17 | . . 1 11 1 3 11 1 17 1 1 To Critical Strikes 1 | . . . . . . . . 1 . . Average Slot Usage (%) 86 | . 88 94 80 80 96 88 80 83 35 58 Engine 5 | . 14 11 5 7 5 3 . . . 11 Reactor 1 | . . . . . . . 5 9 . . Treads 3 | . . . . 11 3 . 5 10 . . Leg 16 | . 28 22 26 12 21 22 2 . . . Device 15 | . 3 27 15 11 18 11 17 14 5 5 Storage 6 | . 14 11 9 7 6 5 6 5 . . Processor 5 | . . . . 6 6 5 6 13 16 11 Hackware 10 | . . . . 5 19 22 6 5 4 . Protection 3 | . . . 4 . . 1 13 9 5 5 Energy Gun 6 | . 14 8 5 . 1 8 9 7 . 6 Energy Cannon 4 | . . 6 8 13 11 . . 1 . 3 Peak Build Rating 126 | 6 10 16 19 35 52 63 109 126 54 37 Average Rating 49 | 4 7 14 15 26 46 53 82 114 36 34 On Entrance 34 | . 6 10 16 18 35 48 56 109 55 27 Naked Turns . | . . . . . . . . . . . Heaviest Build 93 | 11 19 25 47 41 44 51 69 93 3 14 Greatest Support 160 | 20 20 20 40 62 55 70 160 160 3 12 Greatest Overweight (x) 6 | 1 . 1 6 2 1 2 . 1 . 1 Average Overweight (x) . | . . . . . . . . . . . Largest Inventory Capacity 15 | 8 8 8 15 10 15 15 15 15 5 5 Average Capacity 11 | 6 8 8 9 10 10 13 15 15 5 5 Most Carried 15 | 1 8 8 8 10 12 15 15 15 5 5 Average Carried 10 | . 4 7 6 8 10 11 14 13 4 5 Final Capacity 15 | 8 8 8 10 10 15 15 15 15 5 5 Final Carried 15 | 1 8 7 6 10 12 9 15 2 5 5 Class Distribution -------------------- 45% | Scavenger-Mutant 25% | Mutant 21% | Hacker-Mutant 7% | Commander-Mutant Dominant Class ---------------- Mutant | -10/Materials Mutant | -9/Materials Scavenger-Mutant | -8/Materials Scavenger-Mutant | -7/Factory Scavenger-Mutant | -6/Factory Hacker-Mutant | -6/Extension Scavenger-Mutant | -6/Cetus Scavenger-Mutant | -5/Factory Mutant | -5/Waste Mutant | -5/Factory Resources | -11 -10 -9 -8 -7 -6 -6 -6 -5 -5 -5 ----------- Run | Yrd Mat Mat Mat Fac Fac Ext Cet Fac Was Fac Matter Collected 2508 | 219 152 230 383 138 223 656 231 276 . . Remotely . | . . . . . . . . . . . Salvage Created 5071 | . 204 707 642 524 633 1500 . 861 . . Parts 209 | . 13 36 30 24 26 38 . 42 . . Haulers Intercepted 3 | . 1 2 . . . . . . . . Recyclers Shooed 4 | . . . . . 1 . . 3 . . Parts Field Recycled . | . . . . . . . . . . . Retrieved Matter . | . . . . . . . . . . . Parts Self-Destructed . | . . . . . . . . . . . Prevented . | . . . . . . . . . . . Kills | -11 -10 -9 -8 -7 -6 -6 -6 -5 -5 -5 ------- Run | Yrd Mat Mat Mat Fac Fac Ext Cet Fac Was Fac Combat Hostiles Destroyed 102 | . 5 21 13 9 11 22 . 21 . . Melee 2 | . . . . . . . . 2 . . Guns 28 | . . 2 5 . . 15 . 6 . . Cannons 40 | . 5 7 8 6 9 2 . 3 . . AOE 21 | . . 11 . . . . . 10 . . Classes Destroyed 15 | . 3 5 1 3 . 2 . 1 . . Worker 6 | . 1 2 . . . . . 3 . . Builder 1 | . . 1 . . . . . . . . Tunneler 1 | . . . . 1 . . . . . . Hauler 3 | . 1 2 . . . . . . . . Recycler 2 | . . 1 . . . . . 1 . . Watcher 2 | . . 1 . . . 1 . . . . Swarmer 19 | . . 10 . . . . . 9 . . Grunt 51 | . 5 6 9 5 7 15 . 4 . . Brawler 2 | . . . . 1 . 1 . . . . Sentry 16 | . . 5 3 1 2 5 . . . . Hunter 4 | . . . 1 1 . . . 2 . . Programmer 8 | . . . . 1 2 . . 5 . . Heavy 1 | . . . . . . . . 1 . . Behemoth 1 | . . . . . . 1 . . . . Butcher 1 | . . . . . . 1 . . . . Best Kill Streak 10 | . 5 7 5 3 3 3 . 10 . . Combat Bots Only 7 | . 3 5 5 2 3 2 . 7 . . Max Kills in Single Turn 5 | . 1 3 1 2 1 1 . 5 . . Gunslinging . | . . . . . . . . . . . Exploded 4 | . . 2 . . . . . 4 . . Melee 1 | . . . . . . . . 1 . . Uniques/NPCs Destroyed . | . . . . . . . . . . . Combat | -11 -10 -9 -8 -7 -6 -6 -6 -5 -5 -5 -------- Run | Yrd Mat Mat Mat Fac Fac Ext Cet Fac Was Fac Hostile Shots Fired 1206 | . 23 47 229 61 101 376 31 331 1 6 Missed 385 | . 2 15 79 17 31 143 11 85 . 2 Damage Taken 13707 | . 233 482 2285 548 882 3300 571 5296 30 80 Core 2270 | . 12 83 374 47 116 604 29 949 30 26 Absorbed by Shields 122 | . . . . . . 26 96 . . . Redirected to Shielding 104 | . . . . . . 52 . 52 . . Ignored by Resistances 314 | . . . . . . . . 300 . 14 Core Remaining (%) 68 | 100 95 79 32 93 . . 11 . . . Volleys Fired 334 | . 19 36 67 23 24 114 10 40 . 1 Largest 2 | . 2 2 2 2 2 2 2 2 . 2 Hottest 180 | . 89 124 150 155 155 155 165 180 . 105 Shots Fired 582 | . 32 71 98 45 48 193 19 74 . 2 Gun 351 | . 14 31 51 . 10 178 16 50 . 1 Cannon 211 | . 18 31 47 45 38 15 3 13 . 1 Launcher 20 | . . 9 . . . . . 11 . . Special . | . . . . . . . . . . . Kinetic 57 | . 19 16 22 . . . . . . . Thermal 463 | . 13 46 50 45 38 188 19 63 . 1 Explosive 20 | . . 9 . . . . . 11 . . Electromagnetic 42 | . . . 26 . 10 5 . . . 1 Robot Hit Streak 26 | . 4 8 15 15 26 25 4 9 . . Robot Miss Streak 5 | . 2 3 5 4 1 5 3 2 . 3 Penetration Max . | . . . . . . . . . . . Secondary Targets 3 | . . . . . . 2 . 1 . . Max Gunslinging Chain 1 | . . . . . . 1 . 1 . . Shots Hit Robots 424 | . 20 45 68 31 37 152 12 59 . . Core Hits 223 | . 9 34 26 14 21 74 3 42 . . Critical Kills 4 | . . 1 . 2 1 . . . . . Critical Parts Destroyed 1 | . . . . . . . . 1 . . Critical Strikes 16 | . . 3 1 2 1 6 1 2 . . Burn 8 | . . 1 1 . . 5 1 . . . Meltdown 4 | . . 1 . 2 1 . . . . . Blast 1 | . . 1 . . . . . . . . Smash 1 | . . . . . . . . 1 . . Sever 2 | . . . . . . 1 . 1 . . Melee Attacks 16 | . . . . 3 . 2 . 11 . . Impact 7 | . . . . 3 . . . 4 . . Slashing 9 | . . . . . . 2 . 7 . . Piercing . | . . . . . . . . . . . Sneak Attacks 1 | . . . . . . 1 . . . . Combat Hostiles . | . . . . . . . . . . . Follow-up Attacks . | . . . . . . . . . . . Damage Inflicted 12394 | . 374 1577 1566 837 877 3275 343 3545 . . Guns 5190 | . 74 267 504 . 153 2823 281 1088 . . Cannons 3768 | . 297 390 831 768 719 326 62 375 . . Explosions 2875 | . . 920 231 . . . . 1724 . . Melee 538 | . . . . 69 . 111 . 358 . . Ramming 23 | . 3 . . . 5 15 . . . . Kinetic 646 | . 297 161 188 . . . . . . . Thermal 8102 | . 74 496 1100 768 719 3105 343 1497 . . Explosive 2610 | . . 920 . . . . . 1690 . . Electromagnetic 475 | . . . 278 . 153 44 . . . . Impact 215 | . . . . 69 . . . 146 . . Slashing 323 | . . . . . . 111 . 212 . . Piercing . | . . . . . . . . . . . Highest Corruption 40 | . . . 2 19 . 37 40 6 20 20 Average Corruption 24 | . . . 1 8 . 33 39 3 10 20 Corruption Purged . | . . . . . . . . . . . Corruption Blocked . | . . . . . . . . . . . Effects 187 | . . . 5 20 . 107 42 4 7 2 Message Errors 36 | . . . 1 4 . 22 7 1 1 . Matter Fused 38 | . . . 1 3 . 20 12 . 1 1 Heat Flow Errors 18 | . . . . 5 . 7 3 1 1 1 Energy Discharges 24 | . . . 1 4 . 13 6 . . . Parts Rejected 5 | . . . 1 1 . 1 . 1 1 . Parts Fused 3 | . . . . . . 2 1 . . . Data Loss (minor) 13 | . . . . 1 . 8 4 . . . Data Loss (major) 7 | . . . . . . 4 2 1 . . Misfires 13 | . . . . 1 . 10 2 . . . Alerts 3 | . . . . . . 3 . . . . Misdirections 9 | . . . . . . 5 1 . 3 . Weapon Failures 18 | . . . 1 1 . 12 4 . . . Overload Shots . | . . . . . . . . . . . Overflow Damage 365 | . . 72 37 44 . 34 . 178 . . Projectiles 40 | . . 5 23 12 . . . . . . Explosions 197 | . . 67 14 . . . . 116 . . Melee 128 | . . . . 32 . 34 . 62 . . Knockbacks 6 | . 3 1 . . . 1 . 1 . . Impact 2 | . . . . . . 1 . 1 . . Kinetic 4 | . 3 1 . . . . . . . . Secondary . | . . . . . . . . . . . Self-Inflicted Damage 230 | . . 94 80 . . . . 56 . . Shots 7 | . . 3 2 . . . . 2 . . Rammed . | . . . . . . . . . . . Targets Rammed 5 | . 1 . . . 1 3 . . . . Kicked 5 | . 1 . . . 1 3 . . . . Crushed . | . . . . . . . . . . . Highest Temperature 476 | . 360 6 179 228 268 220 235 476 97 136 Average Temperature 106 | . 204 3 35 77 114 49 75 163 57 52 Received Heat Transfer 4276 | . 126 150 1251 213 330 1255 57 876 . 18 Effects 9 | . 3 . . . . . . 6 . . Shutdowns 3 | . 1 . . . . . . 2 . . Energy Bleed 3 | . . . . . . . . 3 . . Interference 1 | . 1 . . . . . . . . . Matter Decay 1 | . . . . . . . . 1 . . Damage (minor) 1 | . 1 . . . . . . . . . Siege Activations . | . . . . . . . . . . . Robots Corrupted 2 | . . . . 1 1 . . . . . Combat Hostiles 2 | . . . . 1 1 . . . . . Parts Fried 2 | . . . . 1 1 . . . . . Impact Corruptions 3 | . . . . 1 . . . 2 . . Robots Melted 9 | . . 1 . 2 1 5 . . . . Combat Hostiles 9 | . . 1 . 2 1 5 . . . . Parts Melted 41 | . . 6 . 5 7 22 . 1 . . Heat Transferred 14118 | . 222 1147 1780 1227 1179 6431 613 1519 . . Parts Sabotaged . | . . . . . . . . . . . Parts Stolen . | . . . . . . . . . . . Parts Stripped . | . . . . . . . . . . . Power Chain Reactions 3 | . . . 3 . . . . . . . Alert | -11 -10 -9 -8 -7 -6 -6 -6 -5 -5 -5 ------- Run | Yrd Mat Mat Mat Fac Fac Ext Cet Fac Was Fac Peak Influence 1215 | . 161 334 300 241 133 611 452 1215 462 331 Initial 402 | . . 16 138 91 76 . 341 233 402 316 Average 235 | . 62 156 190 150 70 214 370 585 429 317 Maximum Alert Level 4 | . . 1 1 1 . 2 2 4 2 1 Low Security (%) 58 | 100 100 77 62 74 100 63 . . . . Level 1 16 | . . 22 37 25 . 6 36 23 . 100 Level 2 21 | . . . . . . 29 63 48 100 . Level 3 1 | . . . . . . . . 14 . . Level 4 1 | . . . . . . . . 13 . . Level 5 . | . . . . . . . . . . . High Security . | . . . . . . . . . . . Max Security . | . . . . . . . . . . . Squads Dispatched 25 | . 3 2 7 3 2 3 . 5 . . Investigation 7 | . 2 1 3 1 . . . . . . Extermination 5 | . . . . 1 2 . . 2 . . Reinforcement 9 | . 1 1 2 . . 2 . 3 . . Assault 1 | . . . . . . 1 . . . . Garrison 3 | . . . 2 1 . . . . . . Intercept . | . . . . . . . . . . . Searches Triggered 1 | . . . . . . 1 . . . . Construction Impeded 2 | . . . . . . 1 . 1 . . Haulers Reinforced . | . . . . . . . . . . . Active Scanning Responses . | . . . . . . . . . . . Cargo Convoy Interrupts 1 | . . . . . . . . 1 . . Stealth | -11 -10 -9 -8 -7 -6 -6 -6 -5 -5 -5 --------- Run | Yrd Mat Mat Mat Fac Fac Ext Cet Fac Was Fac Distress Signals 17 | . . 4 1 4 . 5 2 1 . . Communications Jammed 5 | . . . . . . . . 5 . . Distress Signals 1 | . . . . . . . . 1 . . Times Spotted 216 | . 7 32 24 18 14 62 11 40 7 1 Peak Tracking Total 7 | . 4 7 7 3 3 7 5 6 6 1 Tactical Retreats 22 | . . 2 . 3 1 13 . 2 1 . Traps | -11 -10 -9 -8 -7 -6 -6 -6 -5 -5 -5 ------- Run | Yrd Mat Mat Mat Fac Fac Ext Cet Fac Was Fac Traps Triggered 13 | . 1 1 1 2 . 5 . 3 . . Indirectly . | . . . . . . . . . . . Trap Hack Attempts . | . . . . . . . . . . . Triggered . | . . . . . . . . . . . Disarmed . | . . . . . . . . . . . Reprogrammed . | . . . . . . . . . . . Reused . | . . . . . . . . . . . Traps Extracted . | . . . . . . . . . . . Installed . | . . . . . . . . . . . Triggered 2 | . . . . . . 1 . 1 . . Machines | -11 -10 -9 -8 -7 -6 -6 -6 -5 -5 -5 ---------- Run | Yrd Mat Mat Mat Fac Fac Ext Cet Fac Was Fac Machines Disabled 16 | . 1 . 1 . . 1 2 11 . . Max in Single Turn 4 | . 1 . 1 . . 1 1 4 . . Machines Repaired . | . . . . . . . . . . . Machines Dismantled 2 | . . . . . . . 2 . . . Machines Sabotaged . | . . . . . . . . . . . Overloaded Fab Kills . | . . . . . . . . . . . Hacking | -11 -10 -9 -8 -7 -6 -6 -6 -5 -5 -5 --------- Run | Yrd Mat Mat Mat Fac Fac Ext Cet Fac Was Fac Machines Accessed 35 | . 4 5 3 2 6 8 . 6 . 1 Terminals 30 | . 4 5 2 2 4 8 . 5 . . Fabricators 1 | . . . . . 1 . . . . . Repair Stations 1 | . . . . . . . . . . 1 Recycling Units 1 | . . . . . . . . 1 . . Scanalyzers . | . . . . . . . . . . . Garrison Access 2 | . . . 1 . 1 . . . . . Total Hacks 82 | . 11 12 8 5 19 17 . 8 . 2 Successful 43 | . 7 8 1 4 13 7 . 2 . 1 Failed 39 | . 4 4 7 1 6 10 . 6 . 1 Catastrophic 7 | . . 1 2 . 1 2 . 1 . . Database Lockouts . | . . . . . . . . . . . Manual 59 | . 11 12 6 5 12 2 2 9 . . Terminals 73 | . 11 12 6 5 15 17 . 7 . . Fabricators 2 | . . . . . 2 . . . . . Repair Stations 2 | . . . . . . . . . . 2 Recycling Units 1 | . . . . . . . . 1 . . Scanalyzers . | . . . . . . . . . . . Garrison Access 4 | . . . 2 . 2 . . . . . Terminal Hacks 19 | . 2 3 . 1 6 7 . . . . Open Door 6 | . . . . . 1 5 . . . . Level Access Points 1 | . . . . . 1 . . . . . Terminal Index 4 | . 1 1 . 1 1 . . . . . Alert Level 3 | . . . . . 1 2 . . . . Unreport Threat 3 | . 1 1 . . 1 . . . . . Recall Investigation 1 | . . 1 . . . . . . . . Zone Layout 1 | . . . . . 1 . . . . . Fabricator Hacks 2 | . . . . . 2 . . . . . Network Status 1 | . . . . . 1 . . . . . Build 1 | . . . . . 1 . . . . . Repair Station Hacks 1 | . . . . . . . . . . 1 Refit 1 | . . . . . . . . . . 1 Recycling Unit Hacks . | . . . . . . . . . . . Scanalyzer . | . . . . . . . . . . . Garrison Access Hacks . | . . . . . . . . . . . Unauthorized Hacks 21 | . 5 5 1 3 5 . . 2 . . Terminals 21 | . 5 5 1 3 5 . . 2 . . Assimilate 2 | . . . . 1 1 . . . . . Botnet 15 | . 4 4 1 1 3 . . 2 . . Operators 4 | . 1 1 . 1 1 . . . . . Fabricators . | . . . . . . . . . . . Repair Stations . | . . . . . . . . . . . Recycling Units . | . . . . . . . . . . . Scanalyzers . | . . . . . . . . . . . Garrison Access . | . . . . . . . . . . . Data Cores Recovered 1 | . . . . . . . . 1 . . Used . | . . . . . . . . . . . Hacking Detections 28 | . 4 4 3 2 4 3 1 6 . 1 Full Trace Events 4 | . 1 . 3 . . . . . . . Feedback Events 1 | . . . 1 . . . . . . . Corruption 1 | . . . 1 . . . . . . . Feedback Blocked . | . . . . . . . . . . . Robot Schematics Acquired . | . . . . . . . . . . . Robots Built . | . . . . . . . . . . . Authchips . | . . . . . . . . . . . Time . | . . . . . . . . . . . Total Robot Build Rating . | . . . . . . . . . . . Part Schematics Acquired . | . . . . . . . . . . . Parts Built 2 | . . . . . 2 . . . . . Authchips . | . . . . . . . . . . . Time 53 | . . . . . 53 . . . . . Total Part Build Rating 12 | . . . . . 12 . . . . . Parts Repaired . | . . . . . . . . . . . Time . | . . . . . . . . . . . Parts Recycled . | . . . . . . . . . . . Recycled Matter . | . . . . . . . . . . . Retrieved Matter . | . . . . . . . . . . . Retrieved Components . | . . . . . . . . . . . Parts Scanalyzed . | . . . . . . . . . . . Part Schematics Acquired . | . . . . . . . . . . . Parts Damaged . | . . . . . . . . . . . Bothacking | -11 -10 -9 -8 -7 -6 -6 -6 -5 -5 -5 ------------ Run | Yrd Mat Mat Mat Fac Fac Ext Cet Fac Was Fac Used RIF Installer . | . . . . . . . . . . . Robots Hacked . | . . . . . . . . . . . Non-combat . | . . . . . . . . . . . Combat . | . . . . . . . . . . . Robot Hacks Applied . | . . . . . . . . . . . Relay Couplers Released . | . . . . . . . . . . . Fabnet Peak Effective % . | . . . . . . . . . . . Robots Rewired 24 | . . . . . . 24 . . . . Allies Hacked . | . . . . . . . . . . . Hacks Repelled . | . . . . . . . . . . . Allies | -11 -10 -9 -8 -7 -6 -6 -6 -5 -5 -5 -------- Run | Yrd Mat Mat Mat Fac Fac Ext Cet Fac Was Fac Total Allies 39 | . . . . 1 1 32 5 . . . Largest Group 14 | . . . . 1 1 14 10 9 . . Highest-Rated Group 754 | . . . . 10 10 431 754 719 . . Highest-Rated Ally 159 | . . . . 10 10 159 159 159 . . Total Orders 7 | . . . . . . 7 . . . . STAY 3 | . . . . . . 3 . . . . FOLLOW 3 | . . . . . . 3 . . . . GUARD 1 | . . . . . . 1 . . . . Ally Attacks 350 | . . . . . . 178 80 92 . . Total Damage 7987 | . . . . . . 3249 2113 2625 . . Kills 48 | . . . . . . 23 10 15 . . Allies Corrupted 1 | . . . . . . . . 1 . . Allies Melted . | . . . . . . . . . . . Intel | -11 -10 -9 -8 -7 -6 -6 -6 -5 -5 -5 ------- Run | Yrd Mat Mat Mat Fac Fac Ext Cet Fac Was Fac Robot Analysis Total . | . . . . . . . . . . . Derelict Logs Recovered . | . . . . . . . . . . . Drone Launches . | . . . . . . . . . . . Drone Recoveries . | . . . . . . . . . . . Exploration | -11 -10 -9 -8 -7 -6 -6 -6 -5 -5 -5 ------------- Run | Yrd Mat Mat Mat Fac Fac Ext Cet Fac Was Fac Turns Passed 7952 | 62 316 1060 692 608 1198 2141 672 1039 122 42 Spaces Moved 4151 | 53 208 498 316 301 645 1100 291 511 191 37 Core 228 | 16 . . 2 . . 13 . . 191 6 Treads 934 | . . . . 187 . . 254 493 . . Legs 2958 | 37 208 498 314 114 645 1087 37 18 . . Wheels . | . . . . . . . . . . . Hover 31 | . . . . . . . . . . 31 Flight . | . . . . . . . . . . . Fastest Speed 50 | 50 120 120 120 120 120 50 120 160 50 50 Average Speed 140 | 99 120 173 129 159 153 125 154 161 50 102 Slowest Speed 350 | 120 120 190 350 260 190 260 160 250 50 156 Overloaded Moves . | . . . . . . . . . . . Propulsion Burnouts . | . . . . . . . . . . . Robots Hopped . | . . . . . . . . . . . Cave-ins Triggered . | . . . . . . . . . . . Exploration Rate (%) 38 | 4 42 44 27 8 16 74 87 22 97 2 Regions Visited 10 Branch Regions 2 Pre-discovered Areas . | . . . . . . . . . . . Known Exits Taken 1 | . . . . . . . 1 . . . Unknown Exits Taken 7 | 1 1 1 1 1 1 1 . . . . Scrap Searched . | . . . . . . . . . . . Spaces Dug . | . . . . . . . . . . . Terrain Destroyed 248 | . . 97 25 . . . 2 124 . . Melee . | . . . . . . . . . . . Projectile 16 | . . . 7 . . . 2 7 . . AOE 232 | . . 97 18 . . . . 117 . . Terrain Rammed . | . . . . . . . . . . . Walls Destroyed . | . . . . . . . . . . . Machines Disabled . | . . . . . . . . . . . Actions | -11 -10 -9 -8 -7 -6 -6 -6 -5 -5 -5 --------- Run | Yrd Mat Mat Mat Fac Fac Ext Cet Fac Was Fac Total 5519 | 59 242 623 496 374 802 1654 382 629 218 40 Wait 469 | . . 69 70 23 94 174 5 15 19 . Move 4142 | 52 207 497 315 300 644 1099 290 511 190 37 Hop . | . . . . . . . . . . . Pick Up 56 | 1 8 3 6 5 6 16 3 8 . . Fast Attach 87 | 6 1 3 15 8 6 29 7 9 2 1 Attach 42 | . . 1 7 1 3 13 2 15 . . Detach 17 | . . . 2 . . 5 5 2 3 . Swap 73 | . 3 8 9 6 15 19 5 8 . . Drop 63 | . 3 6 5 4 9 21 1 10 3 1 Fire 334 | . 19 36 67 23 24 114 10 40 . 1 Melee 16 | . . . . 3 . 2 . 11 . . Ram 1 | . . . . . . . . . 1 . Kick 5 | . 1 . . . 1 3 . . . . Crush . | . . . . . . . . . . . Escape Stasis 13 | . . . . . . 13 . . . . Rewire 147 | . . . . 1 . 146 . . . . Trap . | . . . . . . . . . . . Miscellaneous 54 | . . . . . . . 54 . . . Route ------- -11/Scrapyard -10/Materials -9/Materials (discovered 4 exits: *Mat x2 / [*Min] / [*Sto]) -8/Materials -7/Factory -6/Factory (discovered 5 exits: Fac x4 / *Ext) -6/Extension (discovered 2 exits: *Fac / *Cet) -6/Cetus (discovered 2 exits: *Fac / [*Arc]) -5/Factory -5/Waste -5/Factory History --------- Turn | Location | Event 7 | -11/Scrapyard | Discovered new exit (range 15) 63 | -11/Scrapyard | Entered Materials 323 | -10/Materials | Build established: Mutant 350 | -10/Materials | Discovered new exit (range 8) 379 | -10/Materials | Entered another Materials area 379 | -9/Materials | Evolved 2 slots: Utility x2 379 | -9/Materials | Discovered new exit (range 16) 861 | -9/Materials | Discovered new exit (range 8) 1035 | -9/Materials | Discovered new exit (range 14) 1385 | -9/Materials | Discovered new exit (range 12) 1439 | -9/Materials | Entered another Materials area 1439 | -8/Materials | Evolved 2 slots: Propulsion x2 1717 | -8/Materials | Lost 11 parts (1p5n3u2w) 1933 | -8/Materials | Core integrity fell below 50% 1982 | -8/Materials | Garrison activated, responded to threat 2012 | -8/Materials | Lost 7 parts (1p1n2u3w) 2063 | -8/Materials | Discovered new exit (range 9) 2131 | -8/Materials | Entered Factory 2131 | -7/Factory | Evolved 2 slots: Utility x2 2307 | -7/Factory | Discovered new exit (range 13) 2320 | -7/Factory | Build established: Scavenger-Mutant 2583 | -7/Factory | System corruption reached 10% 2656 | -7/Factory | Garrison activated, responded to threat 2739 | -7/Factory | Entered another Factory area 2739 | -6/Factory | Evolved 2 slots: Utility x2 3096 | -6/Factory | Fabricated Imp. Transmission Jammer (x2) 3287 | -6/Factory | Identified exit to Factory 3396 | -6/Factory | Lost 3 parts (1p2u) 3793 | -6/Factory | Build established: Hacker-Mutant 3923 | -6/Factory | Discovered new exit (range 9) 3937 | -6/Factory | Entered Extension 4058 | -6/Extension | Lost 3 parts (1p2w) 4066 | -6/Extension | Rescued a captive Derelict 4076 | -6/Extension | Rescued a captive Derelict 4165 | -6/Extension | Rescued a captive Derelict 4165 | -6/Extension | Rescued a captive Derelict 4221 | -6/Extension | Lost 3 parts (1n2w) 4359 | -6/Extension | System corruption reached 10% 4368 | -6/Extension | Lost 3 allies 4371 | -6/Extension | System corruption reached 30% 4653 | -6/Extension | Build established: Commander-Mutant 4794 | -6/Extension | Spotted B-75 Beast 4956 | -6/Extension | Allies destroyed B-75 Beast 4976 | -6/Extension | Lost 9 allies 4991 | -6/Extension | Spotted B-75 Beast 5022 | -6/Extension | Destroyed B-75 Beast 5080 | -6/Extension | Lost 5 allies 5227 | -6/Extension | Build established: Hacker-Mutant 5307 | -6/Extension | Lost 3 allies 5429 | -6/Extension | Lost 3 parts (1p2u) 5525 | -6/Extension | Core integrity fell below 50% 5582 | -6/Extension | Lost 11 parts (4n4u3w) 5687 | -6/Extension | Search patrols dispatched 5728 | -6/Extension | Core integrity fell below 20% 5758 | -6/Extension | Lost 7 parts (1p3n1u2w) 5954 | -6/Extension | Rescued A7 5970 | -6/Extension | Rescued a captive Derelict 5996 | -6/Extension | Rescued a captive Derelict 5997 | -6/Extension | Rescued a captive Derelict 6025 | -6/Extension | Discovered exit to Factory (range 10) 6026 | -6/Extension | Discovered new exit (range 6) 6037 | -6/Extension | First assault squad dispatched 6078 | -6/Extension | Entered Cetus 6078 | -6/Cetus | Accompanied by 7 allies (A7) 6083 | -6/Cetus | Acquired a Cetus Manufacturing Module code from A7 6096 | -6/Cetus | Spotted Cetus Guard 6096 | -6/Cetus | Spotted Cetus Guard 6098 | -6/Cetus | Spotted Cetus Guard 6098 | -6/Cetus | Spotted Cetus Guard 6099 | -6/Cetus | Build established: Scavenger-Mutant 6100 | -6/Cetus | Allies destroyed Cetus Guard 6102 | -6/Cetus | Allies destroyed Cetus Guard 6103 | -6/Cetus | Allies destroyed Cetus Guard 6115 | -6/Cetus | Allies destroyed Cetus Guard 6281 | -6/Cetus | Started Cetus Manufacturing Module 6306 | -6/Cetus | Manufactured an Enhanced Grunt 6319 | -6/Cetus | Escorted A7 to Cetus Mainframe 6331 | -6/Cetus | Manufactured an Enhanced Grunt 6356 | -6/Cetus | Manufactured an Enhanced Grunt 6381 | -6/Cetus | Manufactured an Enhanced Grunt 6406 | -6/Cetus | Manufactured an Enhanced Grunt 6625 | -6/Cetus | Discovered new exit (range 15) 6660 | -6/Cetus | Spotted Cetus Guard 6660 | -6/Cetus | Spotted Cetus Guard 6663 | -6/Cetus | Spotted Cetus Guard 6664 | -6/Cetus | Spotted Cetus Guard 6670 | -6/Cetus | Allies destroyed Cetus Guard 6683 | -6/Cetus | Allies destroyed Cetus Guard 6689 | -6/Cetus | Allies destroyed Cetus Guard 6689 | -6/Cetus | Allies destroyed Cetus Guard 6689 | -6/Cetus | Discovered exit to Factory (range 16) 6699 | -6/Cetus | Met Revision 17 6750 | -6/Cetus | Entered Factory 6750 | -5/Factory | Accompanied by 9 allies (A7) 6750 | -5/Factory | Evolved 2 slots: Power x1, Utility x1 6755 | -5/Factory | Received a hacking code to weaken MAIN.C 7144 | -5/Factory | Found Prototype Device 7180 | -5/Factory | Lost 4 allies 7470 | -5/Factory | Cargo convoy interrupted 7641 | -5/Factory | Destroyed 7 combat bots 7731 | -5/Factory | Core integrity fell below 50% 7740 | -5/Factory | Identified Exp. Thermal Shield 7756 | -5/Factory | Core integrity fell below 20% 7788 | -5/Factory | Lost 17 parts (2p5n3u7w) 7789 | -5/Factory | Sucked down chute 7789 | -5/Factory | Entered Waste 7792 | -5/Waste | Spotted C-40 Crusher 7804 | -5/Waste | EMP discharged 7804 | -5/Waste | System corruption reached 10% 7844 | -5/Waste | Spotted C-40 Crusher 7844 | -5/Waste | Spotted C-40 Crusher 7849 | -5/Waste | Spotted C-40 Crusher 7851 | -5/Waste | Spotted C-40 Crusher 7852 | -5/Waste | Spotted C-40 Crusher 7877 | -5/Waste | Discovered new exit (range 22) 7904 | -5/Waste | EMP discharged 7904 | -5/Waste | Crushed by Compactor (1 part destroyed, 1 dropped) 7911 | -5/Waste | Entered Factory 7953 | -5/Factory | Destroyed by Y-64 Sentinel with KE Penetrator Last Messages --------------- 07907_ System corrupted: Matter fused (-9). LOCATION=UNKNOWN GOAL=ESCAPE 07915_ Connecting with Repair Station... 07915_ Current location identified: Factory >>Refit Scanning configuration... Attaching: Backup Power I x2 Backup Propulsion I x2 Backup Laser I x2 07924_ System corrupted: Heat flow error (+168). 07927_ Dropped Backup Laser I. 07928_ Acquired Unknown Energy Cannon. 07928_ Identified Proton Cannon. 07945_ System corrupted: Matter fused (-7). 07948_ Slug penetrates Wall. 07950_ ALERT: All DSF locations entering lockdown mode. 07950_ Penetrated by Slug. 07950_ Backup Propulsion I destroyed. Map ----- +----------------------------------------------------+ | ????????????????????????????+ +??????????????? | | ????????????????????????????# #??????????????? | | ????????????????????????????# #??????????????? | | ????????????????????????????# ###????????????? | | ???????????????????########## #????????????? | | ???????????????????# """""" # #????????????? | | ???????????????????# """""" # #????????????? | | ???????????????????# """""" # #????????????? | | ???????????????????# """""" # #????????????? | | ???????????????????# ####+#####???????????? | | ???????????????????#! # #???????????? | | ???????????????????# # """ #???????????? | | ???????????????????# [ # R" #???????????? | | ???????????????????#####+#### """ #???????????? | | ?????????????????????# ## #???????????? | | ?????????????????????# ! ## !!! #???????????? | | ?????????????????????# + !!! #???????????? | | ?????????????????????# ## !!! #???????????? | | ?????????????????????# ## #???????????? | | ?????????????????????### #############???????????? | | ???????????????????????# #???????????????????????? | | ???????????????????????# #???????????????????????? | | ???????????????????????# #???????????????????????? | | ???????????????????????# #???????????????????????? | | ?????????????????????#;# ######??????????????????? | | ??????????????????????# @ #??????????????????? | | ??????????????????????# #??????????????????? | | ????????????????????? #??????????????????? | | ??????????????????? Y +??????????????????? | | ????????????????? #??????????????????? | | ????????????????####### #??????????????????? | | ??????????????????????# #??????????????????? | | ??????????????????????#########??????????????????? | | ?????????????????????????????????????????????????? | | ?????????????????????????????????????????????????? | | ?????????????????????????????????????????????????? | | ?????????????????????????????????????????????????? | | ?????????????????????????????????????????????????? | | ?????????????????????????????????????????????????? | | ?????????????????????????????????????????????????? | | ?????????????????????????????????????????????????? | | ?????????????????????????????????????????????????? | | ?????????????????????????????????????????????????? | | ?????????????????????????????????????????????????? | | ?????????????????????????????????????????????????? | | ?????????????????????????????????????????????????? | | ?????????????????????????????????????????????????? | | ?????????????????????????????????????????????????? | | ?????????????????????????????????????????????????? | | ?????????????????????????????????????????????????? | +----------------------------------------------------+ Best States ------------- Heat Dissipation 94 Energy Generation 45 Energy Capacity 600 Matter Stores 300 Matter Capacity 300 Sight Range 22 Robot Scan Range 16 Terrain Scan Density 10 Jamming Range 14 EM Shielding 2 Armor Coverage 600 Resistance: TH 30 Propulsion Shielding 33 Utility Shielding 90 Weapon Cycling 15 Evasion (%) 55 Targeting Accuracy 6 Melee Accuracy 8 Recoil Reduction 4 Offensive Hacking 20 Defensive Hacking 22 Item Schematics ----------------- None Robot Schematics ------------------ None Fabricated ------------ Imp. Transmission Jammer | x2 | -6/Factory | Preloaded Alien Tech Used ----------------- None Achievements -------------- Just What I Needed Main Advantage Project G-00 Revising The Future Challenges ------------ None Game ------ Seed ResetGravitonProtection Manual? 0 Play Time 01:17:26 Cumulative 33.0 hours Start 2024.10.14 @ 18:51:50 End 2024.10.14 @ 20:09:49 Sessions 1 Manual Loads 0 Difficulty Rogue Special Mode None Game No. 60 Rogue 60 Adventurer 0 Explorer 0 Win Type - Total 0 Types 0/0/0/0/0/0/0/0/0 Lore% 16 Gallery% 39 Achievement% 36 Wizard Run 0 Options --------- Layout 0 ASCII 0 Keyboard 1 Movement Numpad Keybinds 0 Fullscreen 2 Font 24/Terminus Map View 76x50 Zoom Use 0% Tactical HUD 1 Map Filters NONE Filters NONE Steam 1 RUN: b9fb6831-dc24-46a2-93dc-576ca6fa61da